[Event "Early-Titled-Tuesday-Blitz-September-12-2023"]
[Site "Chess.com"]
[Date "2023.09.12"]
[Round "4"]
[White "wonderfultime"]
[Black "Mops_2004"]
[Result "1-0"]
[WhiteElo "2997"]
[BlackElo "2746"]
[TimeControl "180+1"]
[EndTime "8:37:25 PDT"]
[Termination "wonderfultime won by resignation"]

1. d4 {[%clk 0:02:50.5]} 1... g6 {[%clk 0:02:58.6]} 2. e4 {[%clk 0:02:50.4]}
2... Bg7 {[%clk 0:02:58.9]} 3. Bc4 {[%clk 0:02:51.1]} 3... c5 {[%clk 0:02:58.3]}
4. dxc5 {[%clk 0:02:46.6]} 4... Qa5+ {[%clk 0:02:56.9]} 5. c3 {[%clk 0:02:46.5]}
5... Qxc5 {[%clk 0:02:56.8]} 6. Bb3 {[%clk 0:02:44.4]} 6... Nf6 {[%clk
0:02:55.6]} 7. Be3 {[%clk 0:02:36.4]} 7... Qc7 {[%clk 0:02:54]} 8. Nd2 {[%clk
0:02:34.8]} 8... O-O {[%clk 0:02:52.4]} 9. h3 {[%clk 0:02:33.3]} 9... b6 {[%clk
0:02:39.4]} 10. Ne2 {[%clk 0:02:31.3]} 10... Bb7 {[%clk 0:02:39]} 11. Ng3 {[%clk
0:02:24.9]} 11... d5 {[%clk 0:02:38.6]} 12. exd5 {[%clk 0:02:14.9]} 12... Nxd5
{[%clk 0:02:38.4]} 13. Bxd5 {[%clk 0:02:14.7]} 13... Bxd5 {[%clk 0:02:38]} 14.
O-O {[%clk 0:02:15.5]} 14... f5 {[%clk 0:02:21]} 15. f4 {[%clk 0:02:02]} 15...
e5 {[%clk 0:02:19.4]} 16. Nf3 {[%clk 0:01:55.3]} 16... Bc4 {[%clk 0:02:16]} 17.
Nxe5 {[%clk 0:01:39.4]} 17... Bxe5 {[%clk 0:01:48.5]} 18. fxe5 {[%clk
0:01:37.2]} 18... Rd8 {[%clk 0:01:49.1]} 19. Bd4 {[%clk 0:01:08.5]} 19... Bxf1
{[%clk 0:01:48.3]} 20. Qxf1 {[%clk 0:01:09.4]} 20... Qf7 {[%clk 0:01:31.1]} 21.
Re1 {[%clk 0:01:08.3]} 21... Qe6 {[%clk 0:01:22.8]} 22. Ne2 {[%clk 0:01:07.4]}
22... g5 {[%clk 0:01:23.1]} 23. Ng3 {[%clk 0:01:06.7]} 23... Rf8 {[%clk
0:01:21.1]} 24. Nh5 {[%clk 0:01:03.2]} 24... Nc6 {[%clk 0:01:20.1]} 25. Nf6+
{[%clk 0:01:03.7]} 25... Kh8 {[%clk 0:01:20.3]} 26. h4 {[%clk 0:00:51.2]} 26...
Rad8 {[%clk 0:01:11.7]} 27. Qf2 {[%clk 0:00:48.2]} 27... gxh4 {[%clk 0:00:48.9]}
28. Qxh4 {[%clk 0:00:47.8]} 28... Rf7 {[%clk 0:00:49.1]} 29. Re3 {[%clk
0:00:41.3]} 29... Ne7 {[%clk 0:00:42.8]} 30. Rh3 {[%clk 0:00:39.2]} 1-0

[Event "Early-Titled-Tuesday-Blitz-September-12-2023"]
[Site "Chess.com"]
[Date "2023.09.12"]
[Round "4"]
[White "turayev_shahruh17"]
[Black "jimmy-schlumpf"]
[Result "1/2-1/2"]
[WhiteElo "2816"]
[BlackElo "2328"]
[TimeControl "180+1"]
[EndTime "8:37:28 PDT"]
[Termination "Game drawn by agreement"]

1. d4 {[%clk 0:03:00]} 1... Nf6 {[%clk 0:02:59.4]} 2. c4 {[%clk 0:03:00.9]} 2...
g6 {[%clk 0:02:59.2]} 3. g3 {[%clk 0:02:58.6]} 3... c6 {[%clk 0:02:57.3]} 4. Bg2
{[%clk 0:02:54.7]} 4... d5 {[%clk 0:02:57.3]} 5. cxd5 {[%clk 0:02:45.7]} 5...
cxd5 {[%clk 0:02:54.7]} 6. Nf3 {[%clk 0:02:45.1]} 6... Bg7 {[%clk 0:02:54.6]} 7.
O-O {[%clk 0:02:41.6]} 7... O-O {[%clk 0:02:52.8]} 8. Nc3 {[%clk 0:02:41.6]}
8... Ne4 {[%clk 0:02:52]} 9. Ne5 {[%clk 0:02:34.6]} 9... Nxc3 {[%clk 0:02:50.3]}
10. bxc3 {[%clk 0:02:33.9]} 10... Nc6 {[%clk 0:02:48.6]} 11. Nxc6 {[%clk
0:02:32.3]} 11... bxc6 {[%clk 0:02:48]} 12. Qa4 {[%clk 0:02:31.7]} 12... Bd7
{[%clk 0:02:29.8]} 13. Qa3 {[%clk 0:02:23.8]} 13... e5 {[%clk 0:02:25.7]} 14.
Be3 {[%clk 0:02:21.3]} 14... Re8 {[%clk 0:02:22.7]} 15. Rfe1 {[%clk 0:02:15.7]}
15... Qc7 {[%clk 0:02:19]} 16. Rac1 {[%clk 0:01:59.2]} 16... Rab8 {[%clk
0:02:13]} 17. dxe5 {[%clk 0:01:43.2]} 17... Bxe5 {[%clk 0:02:10.5]} 18. Bd4
{[%clk 0:01:42.9]} 18... Be6 {[%clk 0:01:42]} 19. e4 {[%clk 0:01:35.7]} 19...
Bd6 {[%clk 0:01:29.9]} 20. Bc5 {[%clk 0:01:32.9]} 20... Bxc5 {[%clk 0:01:20.2]}
21. Qxc5 {[%clk 0:01:31.9]} 21... dxe4 {[%clk 0:01:14.1]} 22. Bxe4 {[%clk
0:01:29.1]} 22... Rb2 {[%clk 0:01:14.7]} 23. a3 {[%clk 0:01:15.9]} 23... Rd8
{[%clk 0:01:09.6]} 24. Red1 {[%clk 0:01:12.6]} 24... Rxd1+ {[%clk 0:01:02.4]}
25. Rxd1 {[%clk 0:01:13.5]} 25... Qb6 {[%clk 0:00:56.9]} 26. Qd4 {[%clk
0:01:13.8]} 26... Qxd4 {[%clk 0:00:53.1]} 27. cxd4 {[%clk 0:01:11.9]} 27... Bd5
{[%clk 0:00:52.3]} 28. Rb1 {[%clk 0:01:07.3]} 28... Ra2 {[%clk 0:00:45.6]} 29.
Bxd5 {[%clk 0:01:02.6]} 29... cxd5 {[%clk 0:00:46.1]} 30. Rb5 {[%clk 0:01:02.8]}
30... Rxa3 {[%clk 0:00:45.5]} 31. Rxd5 {[%clk 0:01:02.4]} 31... a5 {[%clk
0:00:44.7]} 32. h4 {[%clk 0:01:00]} 32... a4 {[%clk 0:00:43.1]} 33. g4 {[%clk
0:00:56.3]} 33... Rd3 {[%clk 0:00:40.4]} 34. Kf1 {[%clk 0:00:50.5]} 34... a3
{[%clk 0:00:40.1]} 35. Ke2 {[%clk 0:00:49.2]} 35... a2 {[%clk 0:00:39.3]} 36.
Ra5 {[%clk 0:00:48.3]} 36... Rxd4 {[%clk 0:00:38.7]} 37. f3 {[%clk 0:00:42.8]}
37... h5 {[%clk 0:00:36.9]} 38. Ke3 {[%clk 0:00:42.4]} 38... Rb4 {[%clk
0:00:34.9]} 39. gxh5 {[%clk 0:00:41]} 1/2-1/2

[Event "Early-Titled-Tuesday-Blitz-September-12-2023"]
[Site "Chess.com"]
[Date "2023.09.12"]
[Round "4"]
[White "Byniolus"]
[Black "Tejas_Rama"]
[Result "1-0"]
[WhiteElo "2798"]
[BlackElo "2517"]
[TimeControl "180+1"]
[EndTime "8:37:29 PDT"]
[Termination "Byniolus won by resignation"]

1. d4 {[%clk 0:02:58.4]} 1... Nf6 {[%clk 0:00:03.9]} 2. Nf3 {[%clk 0:02:59.3]}
2... d5 {[%clk 0:00:03.9]} 3. Bf4 {[%clk 0:02:59.6]} 3... e6 {[%clk 0:00:04.5]}
4. e3 {[%clk 0:03:00.1]} 4... Bd6 {[%clk 0:00:05.2]} 5. Bg3 {[%clk 0:03:00.6]}
5... Bxg3 {[%clk 0:00:05]} 6. hxg3 {[%clk 0:03:00.6]} 6... O-O {[%clk
0:00:05.9]} 7. Nbd2 {[%clk 0:03:00.9]} 7... c6 {[%clk 0:00:06.8]} 8. c3 {[%clk
0:03:01.6]} 8... Nbd7 {[%clk 0:00:07.5]} 9. Bd3 {[%clk 0:03:02]} 9... b6 {[%clk
0:00:08.4]} 10. g4 {[%clk 0:03:02.3]} 10... h6 {[%clk 0:00:08.1]} 11. g5 {[%clk
0:03:02.7]} 11... hxg5 {[%clk 0:00:08.5]} 12. Nxg5 {[%clk 0:03:03.6]} 12... g6
{[%clk 0:00:09.2]} 13. Qf3 {[%clk 0:03:02.2]} 13... Kg7 {[%clk 0:00:09.7]} 14.
O-O-O {[%clk 0:02:59.9]} 14... Bb7 {[%clk 0:00:08.9]} 15. e4 {[%clk 0:03:00.3]}
15... dxe4 {[%clk 0:00:08.1]} 16. Ndxe4 {[%clk 0:03:01.2]} 16... c5 {[%clk
0:00:08.1]} 17. Qf4 {[%clk 0:02:32.3]} 17... Nxe4 {[%clk 0:00:06.8]} 18. Bxe4
{[%clk 0:02:24.9]} 18... Bxe4 {[%clk 0:00:07.2]} 19. Nxe4 {[%clk 0:02:25.7]}
19... Rh8 {[%clk 0:00:06.1]} 20. Rxh8 {[%clk 0:02:04.3]} 20... Qxh8 {[%clk
0:00:06]} 21. dxc5 {[%clk 0:02:04.9]} 21... Nxc5 {[%clk 0:00:06]} 22. Qe5+
{[%clk 0:01:56.2]} 22... Kg8 {[%clk 0:00:04.6]} 23. Nf6+ {[%clk 0:01:56.7]}
23... Kf8 {[%clk 0:00:04.7]} 24. b4 {[%clk 0:01:39.8]} 24... Qh6+ {[%clk
0:00:04.6]} 25. Kc2 {[%clk 0:01:29.5]} 25... Na6 {[%clk 0:00:03.9]} 26. Nd7+
{[%clk 0:00:57.9]} 26... Kg8 {[%clk 0:00:04]} 27. Nf6+ {[%clk 0:00:58.2]} 27...
Kf8 {[%clk 0:00:04.4]} 28. Rd3 {[%clk 0:00:58.9]} 28... Rc8 {[%clk 0:00:03.7]}
29. Rh3 {[%clk 0:00:54]} 29... Qg7 {[%clk 0:00:03.9]} 30. Kb3 {[%clk 0:00:44.7]}
30... Nxb4 {[%clk 0:00:04.3]} 1-0

[Event "Early-Titled-Tuesday-Blitz-September-12-2023"]
[Site "Chess.com"]
[Date "2023.09.12"]
[Round "4"]
[White "Semetey"]
[Black "vedantgoswami"]
[Result "0-1"]
[WhiteElo "2502"]
[BlackElo "2335"]
[TimeControl "180+1"]
[EndTime "8:37:35 PDT"]
[Termination "vedantgoswami won on time"]

1. c4 {[%clk 0:02:47.4]} 1... e5 {[%clk 0:02:57.6]} 2. d3 {[%clk 0:02:46.9]}
2... Nf6 {[%clk 0:02:56.5]} 3. Nf3 {[%clk 0:02:47]} 3... Nc6 {[%clk 0:02:54.3]}
4. a3 {[%clk 0:02:46.9]} 4... e4 {[%clk 0:02:48.5]} 5. dxe4 {[%clk 0:02:45]}
5... Nxe4 {[%clk 0:02:49]} 6. Nbd2 {[%clk 0:02:45.2]} 6... Nf6 {[%clk
0:02:42.1]} 7. b4 {[%clk 0:02:42.9]} 7... d6 {[%clk 0:02:37.1]} 8. Bb2 {[%clk
0:02:42.6]} 8... Be7 {[%clk 0:02:35.9]} 9. e3 {[%clk 0:02:33.8]} 9... a5 {[%clk
0:02:34.9]} 10. b5 {[%clk 0:02:32.2]} 10... Nb8 {[%clk 0:02:35.3]} 11. Bd3
{[%clk 0:02:30.9]} 11... Nbd7 {[%clk 0:02:35.2]} 12. Nb3 {[%clk 0:02:24.9]}
12... a4 {[%clk 0:02:33.6]} 13. Nbd4 {[%clk 0:02:24.6]} 13... Nc5 {[%clk
0:02:33.4]} 14. Bc2 {[%clk 0:02:24.6]} 14... O-O {[%clk 0:02:26.9]} 15. h3
{[%clk 0:02:24.3]} 15... Bd7 {[%clk 0:02:22.6]} 16. O-O {[%clk 0:02:22.7]} 16...
c6 {[%clk 0:02:22.5]} 17. Re1 {[%clk 0:02:05.6]} 17... Qb6 {[%clk 0:02:17]} 18.
Rb1 {[%clk 0:02:04.9]} 18... Rfe8 {[%clk 0:02:16]} 19. Ba1 {[%clk 0:01:59.7]}
19... Qa5 {[%clk 0:02:08]} 20. e4 {[%clk 0:01:43.2]} 20... Rad8 {[%clk
0:02:03.6]} 21. Re3 {[%clk 0:01:38.7]} 21... Bf8 {[%clk 0:01:57.4]} 22. Qe2
{[%clk 0:01:38]} 22... Qc7 {[%clk 0:01:46.2]} 23. e5 {[%clk 0:01:19.4]} 23...
dxe5 {[%clk 0:01:44.1]} 24. Nxe5 {[%clk 0:01:20.3]} 24... cxb5 {[%clk
0:01:34.9]} 25. Nxb5 {[%clk 0:01:08.6]} 25... Bxb5 {[%clk 0:01:33.8]} 26. Rxb5
{[%clk 0:01:08.2]} 26... Ne6 {[%clk 0:01:23.2]} 27. Qf3 {[%clk 0:00:40.6]} 27...
b6 {[%clk 0:00:43.5]} 0-1

[Event "Early-Titled-Tuesday-Blitz-September-12-2023"]
[Site "Chess.com"]
[Date "2023.09.12"]
[Round "4"]
[White "giomar27"]
[Black "Redzishchess"]
[Result "0-1"]
[WhiteElo "2276"]
[BlackElo "2502"]
[TimeControl "180+1"]
[EndTime "8:37:35 PDT"]
[Termination "Redzishchess won by resignation"]

1. e4 {[%clk 0:03:00.9]} 1... c5 {[%clk 0:02:57.7]} 2. Nf3 {[%clk 0:03:00.6]}
2... d6 {[%clk 0:02:57.3]} 3. d4 {[%clk 0:03:00.2]} 3... cxd4 {[%clk 0:02:58.2]}
4. Nxd4 {[%clk 0:03:00.5]} 4... Nf6 {[%clk 0:02:59.1]} 5. Nc3 {[%clk 0:03:00.4]}
5... g6 {[%clk 0:02:59.6]} 6. g3 {[%clk 0:02:41.7]} 6... Bg7 {[%clk 0:02:59.6]}
7. Bg2 {[%clk 0:02:41.8]} 7... O-O {[%clk 0:03:00.3]} 8. O-O {[%clk 0:02:42]}
8... Nc6 {[%clk 0:03:01]} 9. Nde2 {[%clk 0:02:42.1]} 9... Bd7 {[%clk 0:02:57.3]}
10. h3 {[%clk 0:02:37.8]} 10... Rc8 {[%clk 0:02:43.6]} 11. g4 {[%clk 0:02:24.3]}
11... Ne5 {[%clk 0:02:29.6]} 12. a4 {[%clk 0:02:21.6]} 12... Qa5 {[%clk
0:02:02.1]} 13. f4 {[%clk 0:02:10.1]} 13... Nc4 {[%clk 0:01:50.6]} 14. b3 {[%clk
0:02:08.8]} 14... Nxg4 {[%clk 0:01:42.8]} 15. hxg4 {[%clk 0:02:03]} 15... Bxc3
{[%clk 0:01:42]} 16. Nxc3 {[%clk 0:01:28.2]} 16... Qxc3 {[%clk 0:01:42.9]} 17.
Ra2 {[%clk 0:01:28.3]} 17... Ne3 {[%clk 0:01:39.9]} 18. Bxe3 {[%clk 0:01:18.5]}
18... Qxe3+ {[%clk 0:01:40.8]} 19. Kh1 {[%clk 0:01:15.6]} 19... Rc5 {[%clk
0:01:16.1]} 20. c4 {[%clk 0:01:07.1]} 20... Bxg4 {[%clk 0:01:10.4]} 21. Qxg4
{[%clk 0:01:04.4]} 21... Rh5+ {[%clk 0:01:10.8]} 22. Bh3 {[%clk 0:01:01.8]}
22... Qxh3+ {[%clk 0:00:59.7]} 23. Qxh3 {[%clk 0:01:01.2]} 23... Rxh3+ {[%clk
0:01:00.6]} 24. Kg2 {[%clk 0:01:00.7]} 24... Rxb3 {[%clk 0:01:01.1]} 25. f5
{[%clk 0:00:58.4]} 25... Rc8 {[%clk 0:00:47.2]} 26. Raf2 {[%clk 0:00:58.1]}
26... f6 {[%clk 0:00:47.6]} 27. Rc2 {[%clk 0:00:54]} 27... Rb4 {[%clk 0:00:43]}
28. fxg6 {[%clk 0:00:54.4]} 28... hxg6 {[%clk 0:00:43]} 29. Rfc1 {[%clk
0:00:54.5]} 29... Rxa4 {[%clk 0:00:39.9]} 30. Kf3 {[%clk 0:00:54.7]} 30... Ra5
{[%clk 0:00:35.8]} 31. Ke3 {[%clk 0:00:54.7]} 31... Rac5 {[%clk 0:00:36.4]} 32.
Kd4 {[%clk 0:00:55]} 32... b5 {[%clk 0:00:34.6]} 33. Rg2 {[%clk 0:00:54.4]}
33... Rxc4+ {[%clk 0:00:33.2]} 34. Rxc4 {[%clk 0:00:54.9]} 34... Rxc4+ {[%clk
0:00:34.1]} 35. Kd5 {[%clk 0:00:55.8]} 35... Kf7 {[%clk 0:00:34.4]} 36. Ra2
{[%clk 0:00:55.2]} 36... Rc7 {[%clk 0:00:25.8]} 37. Ra5 {[%clk 0:00:53.2]} 37...
g5 {[%clk 0:00:24]} 38. Kd4 {[%clk 0:00:51.3]} 38... Rb7 {[%clk 0:00:23.4]} 39.
Kd5 {[%clk 0:00:50.9]} 39... b4 {[%clk 0:00:22.7]} 40. Kc6 {[%clk 0:00:51.5]}
40... Rb6+ {[%clk 0:00:23.2]} 41. Kc7 {[%clk 0:00:51.9]} 41... b3 {[%clk
0:00:23.8]} 42. Ra1 {[%clk 0:00:50.9]} 42... b2 {[%clk 0:00:24.1]} 43. Rb1
{[%clk 0:00:51.8]} 0-1

[Event "Early-Titled-Tuesday-Blitz-September-12-2023"]
[Site "Chess.com"]
[Date "2023.09.12"]
[Round "4"]
[White "Alex_Banzea"]
[Black "schack_vit"]
[Result "0-1"]
[WhiteElo "2632"]
[BlackElo "2435"]
[TimeControl "180+1"]
[EndTime "8:37:37 PDT"]
[Termination "schack_vit won by resignation"]

1. d4 {[%clk 0:03:00.9]} 1... d5 {[%clk 0:02:59.7]} 2. Nc3 {[%clk 0:03:00.7]}
2... Bf5 {[%clk 0:02:56.6]} 3. Bf4 {[%clk 0:03:00.7]} 3... c6 {[%clk 0:02:55.7]}
4. f3 {[%clk 0:03:00.9]} 4... Nf6 {[%clk 0:02:55.7]} 5. g4 {[%clk 0:03:00.7]}
5... Bg6 {[%clk 0:02:56.1]} 6. h4 {[%clk 0:03:00.4]} 6... h6 {[%clk 0:02:56.1]}
7. e3 {[%clk 0:03:00]} 7... Nbd7 {[%clk 0:02:54.1]} 8. Bd3 {[%clk 0:02:59.6]}
8... Bxd3 {[%clk 0:02:53.4]} 9. Qxd3 {[%clk 0:03:00.5]} 9... e6 {[%clk
0:02:50.8]} 10. Nge2 {[%clk 0:03:00.2]} 10... Qb6 {[%clk 0:02:33.8]} 11. O-O-O
{[%clk 0:02:56.5]} 11... O-O-O {[%clk 0:02:34.2]} 12. g5 {[%clk 0:02:53.4]}
12... Nh5 {[%clk 0:02:30.6]} 13. g6 {[%clk 0:02:52.1]} 13... Nxf4 {[%clk
0:02:28.8]} 14. Nxf4 {[%clk 0:02:52]} 14... e5 {[%clk 0:02:25.4]} 15. dxe5
{[%clk 0:02:49.6]} 15... Nxe5 {[%clk 0:02:25.1]} 16. Qf5+ {[%clk 0:02:49.6]}
16... Nd7 {[%clk 0:02:25.4]} 17. gxf7 {[%clk 0:02:48.9]} 17... Qxe3+ {[%clk
0:02:24.9]} 18. Kb1 {[%clk 0:02:46.8]} 18... Qe5 {[%clk 0:02:23.1]} 19. Qg4
{[%clk 0:02:27.1]} 19... h5 {[%clk 0:02:20.3]} 20. Qg5 {[%clk 0:02:03.4]} 20...
Qxg5 {[%clk 0:01:31.3]} 21. hxg5 {[%clk 0:02:03.5]} 21... Ne5 {[%clk 0:01:31.5]}
22. g6 {[%clk 0:01:37.1]} 22... Rd6 {[%clk 0:01:26.3]} 23. Rde1 {[%clk
0:01:06.2]} 23... Nxg6 {[%clk 0:01:20]} 24. Re8+ {[%clk 0:00:59.5]} 24... Kd7
{[%clk 0:01:19.5]} 25. Rxh5 {[%clk 0:00:40.8]} 25... Rxh5 {[%clk 0:01:04]} 26.
Nxh5 {[%clk 0:00:41.7]} 26... Re6 {[%clk 0:01:03.2]} 27. f4 {[%clk 0:00:24.1]}
27... Rxe8 {[%clk 0:01:01.6]} 28. fxe8=Q+ {[%clk 0:00:25]} 28... Kxe8 {[%clk
0:01:01.9]} 29. f5 {[%clk 0:00:25.7]} 29... Nh4 {[%clk 0:00:58]} 30. Ng3 {[%clk
0:00:19.6]} 30... Bd6 {[%clk 0:00:56]} 31. Nce2 {[%clk 0:00:20.3]} 31... Kf7
{[%clk 0:00:54.6]} 32. c3 {[%clk 0:00:17.7]} 32... Be5 {[%clk 0:00:40.3]} 33.
Kc2 {[%clk 0:00:16.9]} 33... Kf6 {[%clk 0:00:40.4]} 34. Kd3 {[%clk 0:00:09.9]}
34... Nxf5 {[%clk 0:00:40.4]} 0-1

[Event "Early-Titled-Tuesday-Blitz-September-12-2023"]
[Site "Chess.com"]
[Date "2023.09.12"]
[Round "4"]
[White "EvgenyBurmakin"]
[Black "HATilay"]
[Result "0-1"]
[WhiteElo "2285"]
[BlackElo "2552"]
[TimeControl "180+1"]
[EndTime "8:37:39 PDT"]
[Termination "HATilay won by resignation"]

1. e4 {[%clk 0:03:00.9]} 1... c5 {[%clk 0:03:00]} 2. Nc3 {[%clk 0:02:59.6]} 2...
d6 {[%clk 0:03:00]} 3. Nf3 {[%clk 0:02:58.4]} 3... a6 {[%clk 0:02:59.1]} 4. d4
{[%clk 0:02:58.3]} 4... cxd4 {[%clk 0:02:59.7]} 5. Nxd4 {[%clk 0:02:58.8]} 5...
Nf6 {[%clk 0:03:00.6]} 6. Be3 {[%clk 0:02:57.6]} 6... e5 {[%clk 0:03:00.4]} 7.
Nb3 {[%clk 0:02:56.7]} 7... Be7 {[%clk 0:03:01.1]} 8. f3 {[%clk 0:02:53.3]} 8...
h5 {[%clk 0:03:00.3]} 9. Qd2 {[%clk 0:02:41.8]} 9... Be6 {[%clk 0:03:00.8]} 10.
O-O-O {[%clk 0:02:41.5]} 10... Nbd7 {[%clk 0:02:49.8]} 11. Nd5 {[%clk
0:02:31.9]} 11... Nxd5 {[%clk 0:02:47.6]} 12. exd5 {[%clk 0:02:32.8]} 12... Bf5
{[%clk 0:02:48.2]} 13. Bd3 {[%clk 0:02:28.2]} 13... Bxd3 {[%clk 0:02:47.1]} 14.
Qxd3 {[%clk 0:02:29.1]} 14... Bg5 {[%clk 0:02:45.6]} 15. Kb1 {[%clk 0:02:15.2]}
15... Bxe3 {[%clk 0:02:44.6]} 16. Qxe3 {[%clk 0:02:16.1]} 16... Qf6 {[%clk
0:02:27]} 17. Rhe1 {[%clk 0:02:05]} 17... O-O {[%clk 0:02:26.3]} 18. Qe4 {[%clk
0:01:39.4]} 18... a5 {[%clk 0:02:22.6]} 19. a4 {[%clk 0:01:38.6]} 19... Rfc8
{[%clk 0:02:21.6]} 20. Re3 {[%clk 0:01:25]} 20... Rc7 {[%clk 0:02:15]} 21. c3
{[%clk 0:01:11.5]} 21... Rac8 {[%clk 0:02:09.2]} 22. Qc2 {[%clk 0:00:47.4]}
22... b6 {[%clk 0:02:06.4]} 23. Re4 {[%clk 0:00:39.2]} 23... Qg6 {[%clk
0:02:03.7]} 24. Re2 {[%clk 0:00:33.4]} 24... Qxc2+ {[%clk 0:01:56.4]} 25. Kxc2
{[%clk 0:00:34.3]} 25... Rc4 {[%clk 0:01:56.5]} 26. Ra1 {[%clk 0:00:22.7]} 26...
f5 {[%clk 0:01:50.7]} 27. Nd2 {[%clk 0:00:21.9]} 27... Rh4 {[%clk 0:01:30.2]}
28. g3 {[%clk 0:00:19.9]} 28... Rh3 {[%clk 0:01:30.6]} 29. Rg1 {[%clk
0:00:12.6]} 29... Nf6 {[%clk 0:01:29.6]} 30. c4 {[%clk 0:00:12]} 30... g5 {[%clk
0:01:28.4]} 31. Kd3 {[%clk 0:00:11]} 31... g4 {[%clk 0:01:28]} 32. fxg4 {[%clk
0:00:09.6]} 32... hxg4 {[%clk 0:01:27.9]} 33. Rf1 {[%clk 0:00:09]} 33... f4
{[%clk 0:01:21.4]} 34. Rg1 {[%clk 0:00:03.6]} 34... Kg7 {[%clk 0:01:14]} 35. b3
{[%clk 0:00:02.7]} 35... Kg6 {[%clk 0:01:13.9]} 36. Rf2 {[%clk 0:00:02.6]} 36...
Kf5 {[%clk 0:01:13.7]} 37. Kc3 {[%clk 0:00:02.4]} 37... f3 {[%clk 0:01:11.6]}
38. Re1 {[%clk 0:00:02.3]} 38... e4 {[%clk 0:01:11.5]} 39. Re3 {[%clk 0:00:02]}
39... Rch8 {[%clk 0:01:09.8]} 40. Kd4 {[%clk 0:00:02.5]} 40... Rxh2 {[%clk
0:01:10.3]} 41. Rxh2 {[%clk 0:00:02.2]} 41... Rxh2 {[%clk 0:01:11]} 42. Nxe4
{[%clk 0:00:02.7]} 42... Nxe4 {[%clk 0:01:11.2]} 43. Rxe4 {[%clk 0:00:03.1]}
43... Rd2+ {[%clk 0:01:11.9]} 44. Ke3 {[%clk 0:00:03.2]} 44... Re2+ {[%clk
0:01:11.8]} 0-1

[Event "Early-Titled-Tuesday-Blitz-September-12-2023"]
[Site "Chess.com"]
[Date "2023.09.12"]
[Round "4"]
[White "BigAl"]
[Black "chessdjw"]
[Result "0-1"]
[WhiteElo "2542"]
[BlackElo "2750"]
[TimeControl "180+1"]
[EndTime "8:37:40 PDT"]
[Termination "chessdjw won on time"]

1. Nf3 {[%clk 0:03:00.9]} 1... g6 {[%clk 0:02:57.5]} 2. e4 {[%clk 0:03:00]} 2...
Bg7 {[%clk 0:02:57.7]} 3. d4 {[%clk 0:03:00.1]} 3... d6 {[%clk 0:02:58.3]} 4.
Nc3 {[%clk 0:03:00.6]} 4... c6 {[%clk 0:02:55.3]} 5. Be3 {[%clk 0:02:57.7]} 5...
e5 {[%clk 0:02:51.7]} 6. dxe5 {[%clk 0:02:40.2]} 6... dxe5 {[%clk 0:02:51.5]} 7.
Qxd8+ {[%clk 0:02:40.2]} 7... Kxd8 {[%clk 0:02:52.4]} 8. O-O-O+ {[%clk
0:02:40.4]} 8... Kc7 {[%clk 0:02:51.4]} 9. Bc5 {[%clk 0:02:18.1]} 9... Bg4
{[%clk 0:02:25.1]} 10. Bd6+ {[%clk 0:02:14.6]} 10... Kc8 {[%clk 0:02:25.4]} 11.
Bc4 {[%clk 0:01:47.2]} 11... Bxf3 {[%clk 0:01:47.9]} 12. gxf3 {[%clk 0:01:45.8]}
12... Nh6 {[%clk 0:01:48.5]} 13. Rd3 {[%clk 0:01:10.1]} 13... Nd7 {[%clk
0:01:45.3]} 14. Rhd1 {[%clk 0:01:00.7]} 14... Re8 {[%clk 0:01:10.6]} 15. a4
{[%clk 0:00:57.3]} 15... Bf8 {[%clk 0:01:02.7]} 16. Bc7 {[%clk 0:00:27.2]} 16...
Nc5 {[%clk 0:00:51]} 17. Ba5 {[%clk 0:00:10.9]} 17... Nxd3+ {[%clk 0:00:47.6]}
18. Rxd3 {[%clk 0:00:10.7]} 18... b6 {[%clk 0:00:45.6]} 19. Ba6+ {[%clk
0:00:10.2]} 19... Kc7 {[%clk 0:00:46.2]} 20. Nb5+ {[%clk 0:00:06.7]} 20... cxb5
{[%clk 0:00:45.2]} 21. Rc3+ {[%clk 0:00:07.2]} 21... Kd8 {[%clk 0:00:37.3]} 22.
Rd3+ {[%clk 0:00:06]} 22... Ke7 {[%clk 0:00:32.4]} 23. Bd2 {[%clk 0:00:03.9]}
23... Red8 {[%clk 0:00:26.5]} 24. Rc3 {[%clk 0:00:01.2]} 24... bxa4 {[%clk
0:00:23]} 0-1

[Event "Early-Titled-Tuesday-Blitz-September-12-2023"]
[Site "Chess.com"]
[Date "2023.09.12"]
[Round "4"]
[White "OparinGrigoriy"]
[Black "Hanging_pointer"]
[Result "0-1"]
[WhiteElo "3008"]
[BlackElo "2628"]
[TimeControl "180+1"]
[EndTime "8:37:45 PDT"]
[Termination "Hanging_pointer won on time"]

1. d4 {[%clk 0:03:00.9]} 1... d5 {[%clk 0:02:53.6]} 2. c4 {[%clk 0:03:01.3]}
2... c6 {[%clk 0:02:52]} 3. Nf3 {[%clk 0:03:01.8]} 3... Nf6 {[%clk 0:02:50.9]}
4. Nc3 {[%clk 0:03:02.2]} 4... dxc4 {[%clk 0:02:49.9]} 5. a4 {[%clk 0:03:02.2]}
5... Bf5 {[%clk 0:02:44.4]} 6. e3 {[%clk 0:03:02.1]} 6... e6 {[%clk 0:02:42.5]}
7. Bxc4 {[%clk 0:03:02.5]} 7... Bb4 {[%clk 0:02:42.1]} 8. O-O {[%clk 0:03:02.4]}
8... Nbd7 {[%clk 0:02:41.4]} 9. Qe2 {[%clk 0:03:01]} 9... a5 {[%clk 0:02:37.1]}
10. e4 {[%clk 0:02:57.1]} 10... Bg6 {[%clk 0:02:36.9]} 11. e5 {[%clk 0:02:37.7]}
11... Nd5 {[%clk 0:02:36.6]} 12. Ne4 {[%clk 0:02:37.5]} 12... N7b6 {[%clk
0:02:27.5]} 13. Bd3 {[%clk 0:02:34.5]} 13... Be7 {[%clk 0:02:27.3]} 14. Rd1
{[%clk 0:02:12.2]} 14... O-O {[%clk 0:02:25.7]} 15. h3 {[%clk 0:01:56.7]} 15...
h6 {[%clk 0:02:17.2]} 16. Ng3 {[%clk 0:01:49.4]} 16... Nb4 {[%clk 0:02:11.9]}
17. Be4 {[%clk 0:01:41.6]} 17... N6d5 {[%clk 0:02:04.2]} 18. Ra3 {[%clk
0:01:34]} 18... Qd7 {[%clk 0:01:59]} 19. Nh2 {[%clk 0:01:29.3]} 19... b6 {[%clk
0:01:54.9]} 20. Nh5 {[%clk 0:01:27.7]} 20... f5 {[%clk 0:01:51.6]} 21. Rg3
{[%clk 0:00:47.4]} 21... Bxh5 {[%clk 0:01:47]} 22. Qxh5 {[%clk 0:00:46.3]} 22...
fxe4 {[%clk 0:01:44.5]} 23. Ng4 {[%clk 0:00:30.7]} 23... Bg5 {[%clk 0:01:42.3]}
24. Nxh6+ {[%clk 0:00:27.6]} 24... Bxh6 {[%clk 0:01:38.1]} 25. Bxh6 {[%clk
0:00:27.7]} 25... Rf7 {[%clk 0:01:36.4]} 26. Re1 {[%clk 0:00:27.2]} 26... Nd3
{[%clk 0:01:34]} 27. Rxe4 {[%clk 0:00:26.6]} 27... N5f4 {[%clk 0:01:26.5]} 28.
Qh4 {[%clk 0:00:19.9]} 28... Qe7 {[%clk 0:01:09.1]} 29. Bg5 {[%clk 0:00:11.2]}
29... Qb4 {[%clk 0:01:04.2]} 30. Bxf4 {[%clk 0:00:10.4]} 30... Nc5 {[%clk
0:00:41.7]} 31. Re2 {[%clk 0:00:08]} 31... Qxd4 {[%clk 0:00:40.4]} 32. Be3
{[%clk 0:00:01.7]} 32... Qxh4 {[%clk 0:00:38.9]} 33. Rg4 {[%clk 0:00:01.5]}
33... Qh5 {[%clk 0:00:37.3]} 0-1